Cogmind - Beta 16.1 @@@ ROGUE MODE // 2026.03.18 @ 13:10:01 Player: TheSkyeDoctor Result: Destroyed by D-53 Grenadier with Mini Grenade Launcher Performance ------------- Evolutions (2) 1000 Regions Visited (4) 800 Robots Destroyed (27) 135 Value Destroyed (1076) 1076 Prototype IDs (0) 0 Alien Tech Used (0) 0 Bonus (200) 200 TOTAL SCORE: 3211 Bonus ------- Entered Garrisons 200 Cogmind --------- Core Integrity 0/550 Matter 300/300 Energy 66/100 System Corruption 16% Temperature Cool (0) Movement Walking (120) Location -8/Garrison Parts ------- > --- POWER (1) -------- (None) > --- PROPULSION (3) --- Carbon-fiber Leg > --- UTILITY (4) ------ Improved Signal Interpreter > --- WEAPON (3) ------- (None) > --- INVENTORY (5) ---- Cooling System High-capacity Battery (250) Improved Terrain Scanner Relay Coupler [Sentry] (17) Peak State ------------ > --- POWER ------------ Nuclear Core > --- PROPULSION ------- Light Treads Light Treads > --- UTILITY ---------- Large Storage Unit Seismic Detector Targeting Computer Light Armor Plating > --- WEAPON ----------- Beam Rifle Heavy Assault Rifle Heavy Hammer > --- INVENTORY -------- Compact Wheel Compact Wheel Cooling System High-capacity Battery Structural Scanner Improved Signal Interpreter Improved Terrain Scanner Seismic Detector Light Armor Plating Relay Coupler [NC] Relay Coupler [Swarmer] Light Assault Rifle Grenade Launcher [Rating: 17] Favorites ----------- Power Nuclear Core Engine Ion Engine Power Core Nuclear Core Propulsion Light Treads Treads Light Treads Leg Aluminum Leg Wheel Compact Wheel Utility Large Storage Unit Device Seismic Detector Storage Large Storage Unit Processor Targeting Computer Protection Light Armor Plating Weapon Heavy Hammer Energy Gun Beam Rifle Ballistic Gun Assault Rifle Ballistic Cannon Light Cannon Impact Weapon Heavy Hammer Build | -11 -10 -9 -8 -8 ------- Run | Yrd Mat Mat Mat Gar Slots Evolved 4 | . . 2 2 . Power . | . . . . . Propulsion 1 | . . . 1 . Utility 2 | . . 2 . . Weapon 1 | . . . 1 . Parts Attached 24 | 7 2 5 . 10 Power 3 | 1 . 1 . 1 Engine 1 | 1 . . . . Core 2 | . . 1 . 1 Reactor . | . . . . . Propulsion 6 | 2 . . . 4 Treads 2 | 2 . . . . Leg 2 | . . . . 2 Wheel 2 | . . . . 2 Hover . | . . . . . Flight . | . . . . . Utility 9 | 2 1 2 . 4 Device 3 | 1 . 1 . 1 Storage 2 | 1 1 . . . Processor 2 | . . 1 . 1 Hackware . | . . . . . Protection 2 | . . . . 2 Artifact . | . . . . . Weapon 6 | 2 1 2 . 1 Energy Gun 1 | . . . . 1 Energy Cannon . | . . . . . Ballistic Gun 3 | 2 . 1 . . Ballistic Cannon 1 | . 1 . . . Launcher . | . . . . . Special Weapon . | . . . . . Impact Weapon 1 | . . 1 . . Slashing Weapon . | . . . . . Piercing Weapon . | . . . . . Special Melee Weapon . | . . . . . Unidentified Prototypes . | . . . . . Corrupted Parts 2 | . . . . 2 System Corruption 16 | . . . . 16 Parts Lost 17 | . . . . 17 Power 2 | . . . . 2 Propulsion 5 | . . . . 5 Utility 5 | . . . . 5 Weapon 5 | . . . . 5 Highest Loss Streak 5 | . . . . 5 To Critical Strikes . | . . . . . Average Backups 9 | 2 7 9 11 10 Power . | . 1 1 1 . Propulsion 1 | 1 2 2 2 . Utility 5 | . 3 4 5 7 Weapon 1 | . . 2 3 1 Tool/Special . | . . . . . Unused Backups 8 | . . 1 . 7 Power 1 | . . 1 . . Propulsion . | . . . . . Utility 6 | . . . . 6 Weapon 1 | . . . . 1 Tool/Special . | . . . . . Average Slot Usage (%) 84 | . 100 99 90 65 Engine 3 | . 14 1 . . Core 4 | . . 9 9 4 Treads 17 | . 28 22 18 8 Leg 1 | . . . . 2 Device 13 | . 14 22 18 7 Storage 10 | . 14 11 9 9 Processor 8 | . . 10 9 12 Protection 1 | . . . . 3 Ballistic Gun 10 | . 21 7 9 4 Ballistic Cannon 5 | . 6 11 9 1 Impact Weapon 5 | . . 3 9 8 Peak Build Rating 17 | 7 7 13 16 17 Average Rating 10 | 5 7 12 15 12 On Entrance 8 | . 7 7 13 16 Avg Prop Armor Cover (%) . | . . . . . Naked Turns . | . . . . . Heaviest Build 40 | 14 31 35 38 40 Greatest Support 40 | 40 40 40 40 40 Greatest Overweight (x) 7 | . . . . 7 Average Overweight (x) . | . . . . 1 Largest Inventory Capacity 15 | 8 15 15 15 15 Average Capacity 14 | 6 14 15 15 14 Most Carried 14 | 3 8 12 13 14 Average Carried 9 | 2 7 9 11 10 Final Capacity 15 | 8 15 15 15 5 Final Carried 13 | 3 8 12 13 4 Class Distribution -------------------- 100% | Mutant Dominant Class ---------------- Mutant | -10/Materials Mutant | -9/Materials Mutant | -8/Materials Mutant | -8/Garrison Resources | -11 -10 -9 -8 -8 ----------- Run | Yrd Mat Mat Mat Gar Matter Collected 885 | 310 162 212 78 123 Remotely . | . . . . . Salvage Created 873 | 92 212 281 . 288 Parts 42 | 6 9 23 . 4 Haulers Intercepted . | . . . . . Recyclers Shooed . | . . . . . Parts Field Recycled . | . . . . . Retrieved Matter . | . . . . . Parts Self-Destructed . | . . . . . Prevented . | . . . . . Parts Restored . | . . . . . Kills | -11 -10 -9 -8 -8 ------- Run | Yrd Mat Mat Mat Gar Combat Hostiles Destroyed 22 | . 4 9 . 9 Melee 4 | . . . . 4 Guns 4 | . 3 1 . . Cannons 9 | . 1 8 . . Classes Destroyed 7 | 2 2 1 . 2 Tunneler 2 | 2 . . . . Recycler 1 | 1 . . . . Watcher 2 | . 2 . . . Swarmer 4 | . . . . 4 Grunt 14 | . 4 6 . 4 Sentry 3 | . . 3 . . Hunter 1 | . . . . 1 Best Kill Streak 3 | 2 2 2 . 3 Combat Bots Only 3 | . 2 2 . 3 Max Kills in Single Turn 1 | 1 1 1 . 1 Gunslinging . | . . . . . Exploded . | . . . . . Melee 1 | . . . . 1 Uniques/NPCs Destroyed . | . . . . . Combat | -11 -10 -9 -8 -8 -------- Run | Yrd Mat Mat Mat Gar Hostile Shots Fired 210 | . 15 55 . 140 Missed 53 | . 2 19 . 32 Hits 157 | . 13 36 . 108 Projectile 157 | . 13 36 . 108 AOE 15 | . . 1 . 14 Critical Strikes 3 | . . . . 3 Damage Taken 2345 | . 201 455 . 1689 Core 657 | . 21 82 . 554 Absorbed by Shields . | . . . . . Core Remaining (%) 90 | 100 91 79 . . Volleys Fired 90 | 15 23 37 . 15 Largest 2 | 2 2 2 . 2 Hottest 79 | 40 50 53 . 79 Shots Fired 154 | 30 46 59 . 19 Gun 105 | 30 34 22 . 19 Cannon 49 | . 12 37 . . Launcher . | . . . . . Special . | . . . . . Kinetic 150 | 30 46 59 . 15 Thermal 4 | . . . . 4 Explosive . | . . . . . Electromagnetic . | . . . . . Robot Hit Streak 16 | 4 7 16 . 5 Robot Miss Streak 4 | 2 4 2 . 3 Penetration Max . | . . . . . Secondary Targets . | . . . . . Shots Hit Robots 112 | 16 28 42 . 26 Core Hits 34 | 5 11 16 . 2 Critical Kills 1 | . . . . 1 Critical Parts Destroyed 5 | 1 . 1 . 3 Critical Strikes 7 | 1 . 2 . 4 Destroy 2 | 1 . 1 . . Blast 1 | . . 1 . . Smash 4 | . . . . 4 Melee Attacks 58 | . . 3 2 53 Impact 58 | . . 3 2 53 Slashing . | . . . . . Piercing . | . . . . . Sneak Attacks . | . . . . . Combat Hostiles . | . . . . . Follow-up Attacks . | . . . . . Damage Inflicted 1947 | 168 358 667 . 754 Guns 693 | 168 232 196 . 97 Cannons 597 | . 126 471 . . Explosions . | . . . . . Melee 657 | . . . . 657 Ramming . | . . . . . Kinetic 1261 | 168 358 667 . 68 Thermal 29 | . . . . 29 Explosive . | . . . . . Electromagnetic . | . . . . . Impact 657 | . . . . 657 Slashing . | . . . . . Piercing . | . . . . . Highest Corruption 16 | . . . . 16 Average Corruption 12 | . . . . 12 Corruption Purged . | . . . . . Corruption Blocked . | . . . . . Effects 10 | . . . . 10 Message Errors 2 | . . . . 2 Matter Fused 6 | . . . . 6 Parts Fused 1 | . . . . 1 Data Loss (minor) 1 | . . . . 1 Overload Shots . | . . . . . Overflow Damage 213 | . 4 . . 209 Projectiles 4 | . 4 . . . Explosions . | . . . . . Melee 209 | . . . . 209 Knockbacks 13 | . 3 6 . 4 Impact 4 | . . . . 4 Kinetic 9 | . 3 6 . . Secondary . | . . . . . Self-Inflicted Damage . | . . . . . Shots . | . . . . . Rammed . | . . . . . Targets Rammed . | . . . . . Kicked . | . . . . . Crushed . | . . . . . Highest Temperature 45 | . 18 6 . 45 Average Temperature 10 | . 7 2 . 19 Received Heat Transfer 555 | . 93 201 . 261 Siege Activations . | . . . . . Martial Activations . | . . . . . Shielding Activations . | . . . . . Robots Disrupted . | . . . . . Combat Hostiles . | . . . . . Robots Corrupted 5 | . . . . 5 Combat Hostiles 5 | . . . . 5 Parts Fried 8 | . . . . 8 Impact Corruptions 11 | . . . . 11 Robots Melted . | . . . . . Combat Hostiles . | . . . . . Parts Melted . | . . . . . Heat Transferred 74 | . . . . 74 Parts Sabotaged . | . . . . . Parts Stolen . | . . . . . Parts Stripped . | . . . . . Power Chain Reactions . | . . . . . Alert | -11 -10 -9 -8 -8 ------- Run | Yrd Mat Mat Mat Gar Maximum Alert Level 1 | . . . . 1 Low Security (%) 72 | 100 100 100 100 35 Level 1 27 | . . . . 64 Level 2 . | . . . . . Level 3 . | . . . . . Level 4 . | . . . . . Level 5 . | . . . . . High Security . | . . . . . Max Security . | . . . . . Peak Influence 302 | 5 40 80 29 302 Initial 29 | . . . 29 . Average 95 | 1 5 21 9 208 Influence Increases 826 | 15 109 268 2 432 Destroy 0b10 Robot/C 440 | . 80 180 . 180 Destroy 0b10 Robot/NC 25 | 15 10 . . . Destroy Leader 74 | . 14 50 . 10 Successful Hack 26 | . 5 5 . 16 Disable Machine 60 | . . . . 60 Anti-Garrison Action 50 | . . . . 50 Destroy Structure 46 | . . 3 2 41 Lose Combat Pursuer 105 | . . 30 . 75 Influence Decreases 564 | 15 109 196 74 170 Entered New Map 43 | . . . 43 . Time Decay 351 | 15 109 196 31 . Lost Part 170 | . . . . 170 Squads Dispatched 1 | . . 1 . . Investigation . | . . . . . Extermination . | . . . . . Reinforcement 1 | . . 1 . . Assault . | . . . . . Garrison . | . . . . . Intercept . | . . . . . Searches Triggered . | . . . . . Construction Impeded . | . . . . . Haulers Reinforced . | . . . . . Active Scanning Responses . | . . . . . Cargo Convoy Interrupts . | . . . . . Stealth | -11 -10 -9 -8 -8 --------- Run | Yrd Mat Mat Mat Gar Distress Signals 1 | . 1 . . . Communications Jammed . | . . . . . Distress Signals . | . . . . . Times Spotted 40 | . 9 14 . 17 Peak Tracking Total 6 | . 4 4 . 6 Tactical Retreats 3 | . . 1 . 2 Traps | -11 -10 -9 -8 -8 ------- Run | Yrd Mat Mat Mat Gar Traps Triggered 5 | . 1 . . 4 Indirectly . | . . . . . Trap Hack Attempts . | . . . . . Triggered . | . . . . . Disarmed . | . . . . . Reprogrammed . | . . . . . Reused . | . . . . . Traps Extracted . | . . . . . Installed . | . . . . . Triggered . | . . . . . Machines | -11 -10 -9 -8 -8 ---------- Run | Yrd Mat Mat Mat Gar Machines Disabled 5 | . . . . 5 Max in Single Turn 1 | . . . . 1 Garrison Relay 1 | . . . . 1 Machines Repaired . | . . . . . Machines Dismantled . | . . . . . Machines Sabotaged . | . . . . . Overloaded Fab Kills . | . . . . . Hacking | -11 -10 -9 -8 -8 --------- Run | Yrd Mat Mat Mat Gar Machines Accessed 7 | . 3 2 1 1 Terminals 6 | . 3 2 . 1 Fabricators . | . . . . . Repair Stations . | . . . . . Recycling Units . | . . . . . Scanalyzers . | . . . . . Garrison Access 1 | . . . 1 . Total Hacks 17 | . 8 5 3 1 Successful 8 | . 4 2 1 1 Failed 9 | . 4 3 2 . Catastrophic . | . . . . . Database Lockouts . | . . . . . Manual 13 | . 8 5 . . Terminals 14 | . 8 5 . 1 Fabricators . | . . . . . Repair Stations . | . . . . . Recycling Units . | . . . . . Scanalyzers . | . . . . . Garrison Access 3 | . . . 3 . Terminal Hacks 1 | . . . . 1 Security Stations 1 | . . . . 1 Fabricator Hacks . | . . . . . Repair Station Hacks . | . . . . . Recycling Unit Hacks . | . . . . . Scanalyzer . | . . . . . Garrison Access Hacks 1 | . . . 1 . Unlock Access 1 | . . . 1 . Unauthorized Hacks 6 | . 4 2 . . Terminals 6 | . 4 2 . . Assimilate 3 | . 2 1 . . Botnet 3 | . 2 1 . . Fabricators . | . . . . . Repair Stations . | . . . . . Recycling Units . | . . . . . Scanalyzers . | . . . . . Garrison Access . | . . . . . Data Cores Recovered . | . . . . . Used . | . . . . . Hacking Detections 6 | . 3 2 1 . Full Trace Events 2 | . 1 . 1 . Feedback Events . | . . . . . Feedback Blocked . | . . . . . Robot Schematics Acquired . | . . . . . Robots Built . | . . . . . Authchips . | . . . . . Time . | . . . . . Total Robot Build Rating . | . . . . . Part Schematics Acquired . | . . . . . Parts Built . | . . . . . Authchips . | . . . . . Time . | . . . . . Total Part Build Rating . | . . . . . Part Studies Acquired . | . . . . . Parts Repaired . | . . . . . Time . | . . . . . Parts Recycled . | . . . . . Recycled Matter . | . . . . . Retrieved Matter . | . . . . . Retrieved Components . | . . . . . Parts Scanalyzed . | . . . . . Part Schematics Acquired . | . . . . . Parts Damaged . | . . . . . Bothacking | -11 -10 -9 -8 -8 ------------ Run | Yrd Mat Mat Mat Gar Used RIF Installer . | . . . . . Robots Hacked . | . . . . . Non-combat . | . . . . . Combat . | . . . . . Robot Hacks Applied . | . . . . . Relay Couplers Released 3 | . . . . 3 Machine Destruction 3 | . . . . 3 Fabnet Peak Effective % . | . . . . . Robots Rewired . | . . . . . Allies Hacked . | . . . . . Hacks Repelled . | . . . . . Allies | -11 -10 -9 -8 -8 -------- Run | Yrd Mat Mat Mat Gar Total Allies . | . . . . . Largest Group . | . . . . . Highest-Rated Group . | . . . . . Highest-Rated Ally . | . . . . . Total Orders . | . . . . . Ally Attacks . | . . . . . Total Damage . | . . . . . Kills . | . . . . . Allies Corrupted . | . . . . . Allies Melted . | . . . . . Intel | -11 -10 -9 -8 -8 ------- Run | Yrd Mat Mat Mat Gar Active Infowar (turns) 2400 | 39 673 616 123 949 Structural 745 | . . 616 123 6 Seismic 2400 | 39 673 616 123 949 Robot Analysis Total . | . . . . . Derelict Logs Recovered . | . . . . . Drone Launches . | . . . . . Drone Recoveries . | . . . . . Exploration | -11 -10 -9 -8 -8 ------------- Run | Yrd Mat Mat Mat Gar Turns Passed 2743 | 157 673 616 123 1174 Spaces Moved 1256 | 65 363 304 71 453 Core 67 | 1 . . . 66 Treads 1061 | 64 363 304 71 259 Legs 119 | . . . . 119 Wheels 9 | . . . . 9 Hover . | . . . . . Flight . | . . . . . Fastest Speed 50 | 50 160 160 160 100 Average Speed 176 | 158 160 160 160 205 Slowest Speed 400 | 160 160 160 160 400 Overloaded Moves . | . . . . . Propulsion Burnouts . | . . . . . Robots Hopped . | . . . . . Potential Cave-ins . | . . . . . Cave-ins Triggered . | . . . . . Exploration Rate (%) 28 | 4 59 31 10 39 Regions Visited 4 Branch Regions . Pre-discovered Areas . | . . . . . Known Exits Taken 1 | . . . 1 . Unknown Exits Taken 3 | 1 1 1 . . Scrap Searched . | . . . . . Spaces Dug 16 | . . 3 2 11 Terrain Destroyed 16 | . . 3 2 11 Melee 16 | . . 3 2 11 Projectile . | . . . . . AOE . | . . . . . Terrain Rammed . | . . . . . Walls Destroyed . | . . . . . Machines Disabled . | . . . . . Actions | -11 -10 -9 -8 -8 --------- Run | Yrd Mat Mat Mat Gar Total 1529 | 89 412 369 76 583 Wait 52 | . 17 9 . 26 Move 1253 | 64 362 303 71 453 Hop . | . . . . . Pick Up 22 | 3 6 8 2 3 Fast Attach 9 | 7 . . . 2 Attach 11 | . . 2 1 8 Detach . | . . . . . Swap 7 | . 2 4 . 1 Drop 7 | . 2 3 . 2 Fire 90 | 15 23 37 . 15 Melee 58 | . . 3 2 53 Ram . | . . . . . Kick . | . . . . . Crush . | . . . . . Escape Stasis 20 | . . . . 20 Rewire . | . . . . . Trap . | . . . . . Miscellaneous . | . . . . . Route ------- -11/Scrapyard -10/Materials (discovered 3 exits: *Mat / [*Min x2]) -9/Materials -8/Materials -8/Garrison History --------- Turn | Location | Event 15 | -11/Scrapyard | Discovered new exit (range 15) 158 | -11/Scrapyard | Entered Materials 304 | -10/Materials | Build established: Mutant 448 | -10/Materials | Discovered new exit (range 15) 688 | -10/Materials | Discovered new exit (range 15) 742 | -10/Materials | Discovered new exit (range 8) 831 | -10/Materials | Entered another Materials area 831 | -9/Materials | Evolved 2 slots: Utility x2 1415 | -9/Materials | Discovered new exit (range 13) 1447 | -9/Materials | Entered another Materials area 1447 | -8/Materials | Evolved 2 slots: Propulsion x1, Weapon x1 1570 | -8/Materials | Identified exit to Garrison 1570 | -8/Materials | Entered Garrison 1786 | -8/Garrison | Triggered checkpoint 1838 | -8/Garrison | Learned Materials security intel 1878 | -8/Garrison | Garrison Relay disabled 2098 | -8/Garrison | Triggered checkpoint 2099 | -8/Garrison | Triggered checkpoint 2153 | -8/Garrison | Lost 5 parts (2n2u1w) 2160 | -8/Garrison | Core integrity fell below 50% 2190 | -8/Garrison | Lost 4 parts (1p2n1w) 2332 | -8/Garrison | Triggered checkpoint 2442 | -8/Garrison | Core integrity fell below 20% 2463 | -8/Garrison | System corruption reached 10% 2744 | -8/Garrison | Destroyed by D-53 Grenadier with Mini Grenade Launcher Last Messages --------------- 02649_ Stasis field depleted. 02651_ System corrupted: Hvy. Hammer fused. 02682_ Acquired Corrupted Carbon-fiber Leg. 02682_ Integrated Corrupted Carbon-fiber Leg (+4). 02682_ Complication: Energy sink damages Corrupted Carbon-fiber Leg (-12). 02684_ Acquired 10 matter. 02693_ System corrupted: Matter fused (-6). 02730_ Triggered Alarm Trap. 02730_ An alarm sounds. 02731_ Y-45 Defender suffers critical hit (Burn). 02734_ Hvy. Hammer destroyed. 02736_ :SG,|ZRZGITO58QAF 6O2WSHHWZZI2 02737_ Seismic Detector destroyed. 02740_ Aluminum Leg destroyed. 02742_ Targeting Computer destroyed. 02743_ Dropped Lrg. Storage Unit. 02743_ Dropped Relay Coupler [Swarmer]. Map ----- +----------------------------------------------------+ | ??????????????????????? ?????? | | ???????????????????????? ? ???????? | | ?????????????????????????# ## #? #????????? | | ?????????????????????????# ## ## #????????? | | ?????????????????????????" "????????? | | ?????????????????????????" "????????? | | ?????????????????????????" "????????? | | ?????????????????????????" "????????? | | ?????????????????????????# ## ## #?######?? | | ???????????############### ## ## ###"##"### | | ???????????# # | | ???????????# # | | ???????????# ###"### # | | ???????????# #### ########### ## ^##?# #?# " | | ???????????# #??# ##????# #?# ## #??# ### # | | ???????????# #??# "#????# #?#"##### #??#% " # | | ???????????# #??# ##????# ### #??## #### ##" " | | ???????????# #??# ##????# #??#" " ### # | | ????######## #### "#????# #####??## #### #?# # | | ????# ##????# #???????# #??# #?# # | | ????# ###### %####"#?????# #???????# ######## # | | ????# ###??# #??# ####### ##??????# | | ????# #### #### ## # #??????# | | ????# " " # g #???????####### ###### | | ????#^ #### ######## ] ##????????????# #????? | | ????#^###??# #????## !@! #????????????# #????? | | ????# #????# #????# ! #????????????# #????? | | ????# #????# #????# !! !#????????????# #????? | | ????" #????# #???###!! !!###??????????# #????? | | ???? #????# #???# Y Y #??????????# #????? | | ??? #????# #???## ! ]]###??????????# #????? | | ???###?????# #????##!! ]]#????????????# ###### | | ???????????# #?????####d####????????????# %= | | ???????????# #????????# #???????????????# # % ## | | ???????????# #????????# #???????????????# # %=#? | | ??????????? #????????? #???????????????# #####? | | ???????????? #?????????##???????????????# #????? | | ???????????? #?????????????????????????## #????? | | ???????????? ??????????????????????????#" #????? | | ?????????????????????????????????????????#T #????? | | ?????????????????????????????????????????#""#????? | | ?????????????????????????????????????????####????? | | ?????????????????????????????????????????????????? | | ?????????????????????????????????????????????????? | | ?????????????????????????????????????????????????? | | ?????????????????????????????????????????????????? | | ?????????????????????????????????????????????????? | | ?????????????????????????????????????????????????? | | ?????????????????????????????????????????????????? | | ?????????????????????????????????????????????????? | +----------------------------------------------------+ Best States ------------- Heat Dissipation 31 Energy Generation 14 Energy Capacity 250 Matter Stores 300 Matter Capacity 300 Sight Range 16 Terrain Scan Density 10 Armor Coverage 150 Evasion (%) 55 Targeting Accuracy 5 Recoil Reduction 2 Item Schematics ----------------- None Robot Schematics ------------------ None Fabricated ------------ Nothing Repaired ---------- Nothing Studied --------- None Alien Tech Used ----------------- None Achievements -------------- None Challenges ------------ None Game ------ Seed TerrorDeuteriumTracker Manual? 0 Play Time 00:15:21 Cumulative 69.7 hours Start 2026.03.18 @ 12:56:19 End 2026.03.18 @ 13:10:01 Sessions 1 Manual Loads 0 Difficulty Rogue Special Mode None Game No. 162 Rogue 162 Adventurer 0 Explorer 0 Win Type - Total 0 Types 0/0/0/0/0/0/0/0/0/0 Lore% 39 Gallery% 43 Achievement% 35 Wizard Run 0 Options --------- Layout 2 ASCII 0 Keyboard 1 Movement Arrows Keybinds 0 Fullscreen 1 Font 24/Smallcaps Map View 50x44 Zoom Use 0% Tactical HUD 1 Map Filters NONE Filters NONE Steam 1 RUN: fcb76651-cffc-47ea-81ff-5c69130905a7